[Event "Baku Open 2024"]
[Site "Baku"]
[Date "2024.07.07"]
[Round "9.33"]
[White "Kurmangaliyeva, Liya"]
[Black "Gurbanov, Ismayil"]
[Result "1-0"]
[ECO "E12"]
[WhiteElo "2282"]
[BlackElo "2163"]
[Annotator "TA"]
[PlyCount "117"]
[EventDate "2024.06.29"]
[EventType "swiss"]
[EventCountry "AZE"]
[SourceTitle "playchess.com"]
[Source "ChessBase"]
[SourceQuality "1"]
[TimeControl "5400+30"]

{[%evp 60,117,318,0,295,0,0,0,110,105,154,157,159,151,173,0,391,412,599,404,1128,1149,12796,12796,2629,10595,10595,10595,9596,8196,4132,787,758,784,771,758,674,648,934,835,959,902,12794,5197,7675,5602,4133,1649,5106,4510,5941,5517,6048,1466,1055,0,29968,29965,5953,5879]} 1. d4 {[%emt 0:00:03]} Nf6 {[%emt 0:12:27]} 2. c4 {[%emt 0:00:21]} e6 {[%emt 0:00:24]} 3. Nf3 {[%emt 0:00:15]} b6 {[%emt 0:00:13]} 4. a3 {[%emt 0:00:52]} Bb7 {[%emt 0:00:28]} 5. Nc3 {[%emt 0:00:11]} d5 {[%emt 0:00:21]} 6. Qc2 {[%emt 0:00:18]} Be7 {[%emt 0:02:25]} 7. Bf4 {[%emt 0:00:43] E12: Queen's Indian: Unusual White 4th moves, 4 a3, 4 Nc3 Bb7 5 a3 and 4 Nc3 Bb7 .} O-O {[%emt 0:01:53]} 8. Rd1 {[%emt 0:00:22]} dxc4 {[%emt 0:02:46]} 9. e4 {[%emt 0:00:15]} b5 {[%emt 0:00:30]} 10. h4 {[%emt 0:00:41]} b4 $146 {[%emt 0:02:28]} ({Predecessor:} 10... Nbd7 11. Ng5 Nh5 12. Bc1 h6 13. Nxb5 hxg5 14. hxg5 Bxg5 15. Rxh5 Bxc1 16. Qxc1 Nf6 {½-½ Adhiban,B (2668)-Jakovenko,D (2747) Olympiad-43 Batumi 2018 (6.6)}) 11. axb4 {[%emt 0:56:59]} Bxb4 {[%emt 0:00:11]} 12. Ng5 {[%emt 0:00:46]} h6 {[%emt 0:11:12]} 13. f3 {[%emt 0:00:53]} hxg5 {[%emt 0:11:34]} 14. hxg5 {[%emt 0:01:30]} Nfd7 {[%emt 0:00:12]} 15. Qf2 {[%emt 0:15:16]} Re8 {[%emt 0:01:01]} 16. Qh4 {[%emt 0:00:03]} Kf8 {[%emt 0:00:06]} 17. Qh7 {[%emt 0:04:08]} g6 {[%emt 0:08:10]} 18. Bxc4 {[%emt 0:02:53]} Ke7 {[%emt 0:10:51]} 19. Kf2 {[%emt 0:03:42]} Na6 {[%emt 0:06:24]} 20. Ra1 {[%emt 0:05:21]} Nab8 {[%emt 0:07:59]} 21. Nb5 {[%emt 0:02:07]} Bd6 {[%emt 0:03:13]} 22. e5 {[%emt 0:01:09]} Bb4 {[%emt 0:00:44]} 23. d5 {[%emt 0:00:39]} Bxd5 {[%emt 0:01:58]} 24. Bxd5 {[%emt 0:00:05]} Nf8 {[%emt 0:00:36]} 25. Qg7 {[%emt 0:00:51]} exd5 {[%emt 0:00:12]} 26. Qf6+ {[%emt 0:00:30]} Kd7 {[%emt 0:00:09]} 27. Qxf7+ {[%emt 0:00:10]} Kc8 {[%emt 0:00:30]} 28. Rhc1 {[%emt 0:00:53]} Ne6 {[%emt 0:00:24]} 29. Nd6+ {[%emt 0:02:24]} Bxd6 {[%emt 0:00:02]} 30. exd6 {[%emt 0:00:01]} Nd7 $2 {[%emt 0:02:35][%mdl 8192]} (30... Qd7 $11 31. Qxg6 (31. dxc7 Na6 $15) 31... Nc6 (31... Nxf4 $2 32. Rxc7+ $18) 32. dxc7) 31. Bg3 $2 {[%emt 0:00:58]} (31. dxc7 Qe7 32. Qxg6 Ndc5 $14 (32... Kb7 $2 33. Qd3 $18)) (31. Rxc7+ $1 $18 Nxc7 32. Rc1 (32. dxc7 Qe7 $17)) 31... c5 $2 {[%emt 0:03:58][%mdl 8192]} (31... Ndf8 $11 {and Black stays safe.}) 32. Qxg6 $2 {[%emt 0:00:14]} (32. Re1 $18) 32... Kb7 {[%emt 0:00:17]} 33. Qd3 {[%emt 0:00:22]} Nb6 {[%emt 0:00:38]} (33... Qxg5 $2 34. Qa6+ Kb8 35. Qb5+ Kc8 36. Qc6+ Kb8 37. Rxc5 $18 (37. Qxd7 Rg8 $11) (37. Qxd7 Rg8 $11)) (33... Qb6 $1 $11 34. Qxd5+ Qc6 35. Qb3+ Qb6 36. Qd5+ Qc6 37. Qb3+ Qb6 38. Qd5+) 34. Qa6+ $16 {[%emt 0:00:16]} Kc6 {[%emt 0:00:01]} 35. b4 {[%emt 0:01:01]} Qc8 {[%emt 0:00:07]} (35... Qxg5 $2 36. b5+ Kd7 37. Qb7+ Kd8 38. f4 $18) 36. Qa5 $1 {[%emt 0:00:15]} (36. Qxc8+ Rexc8 37. Re1 (37. bxc5 $2 Nxc5 38. Rh1 a5 $19) 37... Re8 (37... Nxg5 38. bxc5 Nd7 39. Ra6+ Kb5 40. Raa1 $17) 38. bxc5 Nxc5 39. Rxe8 Rxe8 40. Rxa7 d4 41. Rc7+ Kb5 $19 (41... Kd5 $2 42. Rf7 $17)) 36... c4 {[%emt 0:00:21]} 37. Rd1 $2 {[%emt 0:00:16]} ({White should try} 37. Rh1 $1 $18 Nf8 (37... Nxg5 $2 38. Rh5 $18) 38. Kg1) 37... Kd7 $2 {[%emt 0:01:22][%mdl 8192] [#]} (37... Nxg5 38. Rxd5 Nh3+ (38... Nxd5 $2 39. d7 $18) 39. gxh3 Nxd5 40. d7 $18 (40. Qc5+ Kb7 $18) (40. Qc5+ Kb7 $18)) (37... a6 $1 $11) 38. Rh1 $1 $18 {[%emt 0:00:08]} Nxg5 {[%emt 0:00:57]} (38... Nf8 $142 39. g6 Kc6) 39. Rh5 {[%emt 0:00:08]} Nf7 {[%emt 0:04:35]} (39... c3 $142) 40. Rh7 $18 {[%emt 0:00:04]} Ke6 {[%emt 0:00:33]} 41. Re1+ {[%emt 0:01:25]} Kf6 {[%emt 0:00:51]} 42. Qa1+ {[%emt 0:00:00]} c3 {[%emt 0:00:08]} 43. Rxe8 {[%emt 0:00:16]} (43. Bh4+ Kg6 44. d7 (44. Rxe8 Qc4 $11) 44... Nxd7 (44... Kxh7 $2 45. dxe8=Q Qxe8 46. Rxe8 $18) (44... Qxd7 $2 45. Qb1+ Qf5 46. Rg7+ Kxg7 47. Qxf5 $18) 45. Rxe8 Qc4 46. Rxa8 Kxh7 $18) 43... Qxe8 {[%emt 0:00:05]} 44. Qxc3+ {[%emt 0:00:01]} Ke6 {[%emt 0:00:13]} 45. Qe3+ {[%emt 0:00:41]} (45. Qd4 $142 Qg8 46. Rg7 (46. Qe3+ Kd7 $18) 46... Qxg7 47. Qxg7) 45... Kd7 $18 {[%emt 0:02:32]} 46. Qf4 {[%emt 0:00:04]} Kc6 {[%emt 0:02:54]} 47. Rxf7 {[%emt 0:00:28]} Kb5 {[%emt 0:00:07]} 48. Re7 {[%emt 0:00:58]} Qh8 {[%emt 0:00:13]} 49. Qd2 {[%emt 0:00:46]} Rc8 {[%emt 0:01:13]} 50. Rxa7 {[%emt 0:00:16]} Rc4 {[%emt 0:01:12]} 51. d7 {[%emt 0:01:58]} Rxb4 {[%emt 0:00:28]} 52. Qe2+ {[%emt 0:00:51]} Rc4 {[%emt 0:00:34]} 53. Be5 {[%emt 0:00:23]} (53. Qa2 $142 Qd8 54. Qb2+ (54. Qa5+ Kc6 $18) 54... Kc5 55. Qe5 (55. Rc7+ Qxc7 56. Bxc7 Nxd7 $18) 55... Nxd7 56. Rc7+ (56. Qd6+ Kd4 $18) 56... Qxc7 57. Qxc7+ Kb4 58. Qxd7) 53... Qh4+ $18 {[%emt 0:00:08]} 54. Kg1 {[%emt 0:00:09]} Qe7 {[%emt 0:01:16]} 55. f4 {[%emt 0:01:05]} Nxd7 {[%emt 0:00:16]} 56. Rb7+ {[%emt 0:00:32]} (56. Qb2+ $142 Qb4 57. Qxb4+ (57. Rxd7 Qxb2 58. Rb7+ Kc5 $18) 57... Rxb4 58. Rxd7) 56... Ka6 $18 {[%emt 0:00:06] [#]} 57. Ra7+ {[%emt 0:00:24]} (57. Rc7 $3 $18 {[%mdl 512]} Qb4 (57... Qe6 58. Qa2+) 58. Rxd7 Qb6+ 59. Kh2 Qh6+ 60. Kg3 Qg6+ 61. Qg4 Qxg4+ 62. Kxg4) 57... Kb5 $1 {[%emt 0:00:13]} (57... Kxa7 $2 {too greedy.} 58. Bd4+ $18) 58. Qb2+ {[%emt 0:00:31]} Qb4 {[%emt 0:01:41]} 59. Qxb4+ {[%emt 0:00:09]} 1-0

[Event "Baku Open 2024"]
[Site "Baku"]
[Date "2024.07.07"]
[Round "9.34"]
[White "Alizada, Pasham"]
[Black "Dolgun, Can"]
[Result "0-1"]
[ECO "B42"]
[WhiteElo "2070"]
[BlackElo "2264"]
[Annotator "RC"]
[PlyCount "150"]
[EventDate "2024.06.29"]
[EventType "swiss"]
[EventCountry "AZE"]
[SourceTitle "playchess.com"]
[Source "ChessBase"]
[SourceQuality "1"]
[TimeControl "5400+30"]

1. e4 {[%emt 0:00:56]} c5 {[%emt 0:00:02]} 2. Nf3 {[%emt 0:00:03]} e6 {[%emt 0:00:04]} 3. d4 {[%emt 0:00:01]} cxd4 {[%emt 0:00:07]} 4. Nxd4 {[%emt 0:00:02]} a6 {[%emt 0:00:07]} 5. Bd3 {[%emt 0:00:09]} Qc7 {[%emt 0:00:27]} 6. O-O {[%emt 0:00:04]} Bc5 {[%emt 0:00:51]} 7. Nb3 {[%emt 0:00:03]} Ba7 {[%emt 0:00:44]} 8. Qg4 {[%emt 0:00:04]} g6 {[%emt 0:00:53]} 9. Nc3 {[%emt 0:08:24]} Nc6 {[%emt 0:01:22]} 10. Bf4 {[%emt 0:01:51]} d6 {[%emt 0:00:38]} 11. Qg3 {[%emt 0:01:05]} e5 {[%emt 0:04:22]} 12. Nd5 {[%emt 0:01:54]} Qd8 {[%emt 0:00:20]} 13. Bd2 {[%emt 0:04:22]} Be6 {[%emt 0:01:24]} 14. c4 {[%emt 0:05:14]} Qd7 {[%emt 0:10:06]} 15. Rac1 {[%emt 0:06:02]} Nd4 {[%emt 0:00:20]} 16. Nxd4 {[%emt 0:24:36]} Bxd4 {[%emt 0:00:21]} 17. Be3 {[%emt 0:01:37]} Bxe3 {[%emt 0:07:14]} 18. Qxe3 {[%emt 0:06:26]} Bxd5 {[%emt 0:02:31]} 19. cxd5 {[%emt 0:00:22]} Ne7 {[%emt 0:01:25]} 20. Qh6 {[%emt 0:01:36]} Rc8 {[%emt 0:06:27]} 21. Qg7 {[%emt 0:01:08]} Rf8 {[%emt 0:00:28]} 22. Qxh7 {[%emt 0:02:41]} Rxc1 {[%emt 0:01:58]} 23. Rxc1 {[%emt 0:00:01]} Qa4 {[%emt 0:00:15]} 24. Qh4 {[%emt 0:07:08]} Qb4 {[%emt 0:02:17]} 25. Qf6 {[%emt 0:06:22]} Qb6 {[%emt 0:01:29]} 26. Be2 {[%emt 0:02:19]} Rg8 {[%emt 0:02:48]} 27. h4 {[%emt 0:01:23]} Kf8 {[%emt 0:04:18]} 28. b3 {[%emt 0:01:20]} Rg7 {[%emt 0:05:30]} 29. Rc4 {[%emt 0:02:14]} Rh7 {[%emt 0:01:41]} 30. Bg4 {[%emt 0:00:28]} Ke8 {[%emt 0:01:21]} 31. g3 {[%emt 0:02:07]} Qd8 {[%emt 0:03:04]} 32. a4 {[%emt 0:02:25]} Qb8 {[%emt 0:03:51]} 33. b4 {[%emt 0:00:32]} Kf8 {[%emt 0:15:33]} 34. b5 {[%emt 0:00:14]} axb5 {[%emt 0:00:48]} 35. axb5 {[%emt 0:00:01]} b6 {[%emt 0:00:18]} 36. Kg2 {[%emt 0:00:30]} Ke8 {[%emt 0:07:48]} 37. Rc2 {[%emt 0:00:12]} Kf8 {[%emt 0:01:08]} 38. Rc3 {[%emt 0:02:12]} Ke8 {[%emt 0:02:26]} 39. Rc4 {[%emt 0:00:35]} Kf8 {[%emt 0:00:10]} 40. Rc2 {[%emt 0:00:03]} Ke8 {[%emt 0:00:19]} 41. f4 {[%emt 0:01:50]} exf4 {[%emt 0:01:55]} 42. gxf4 {[%emt 0:00:28]} Kf8 {[%emt 0:01:23]} 43. Kg3 {[%emt 0:01:21]} Ke8 {[%emt 0:05:54]} 44. Ra2 {[%emt 0:04:33]} Qd8 {[%emt 0:02:12]} 45. Qa1 {[%emt 0:00:59]} f5 {[%emt 0:00:15]} 46. Ra8 {[%emt 0:03:45]} Nc8 {[%emt 0:00:03]} 47. exf5 {[%emt 0:00:08]} gxf5 {[%emt 0:01:16]} 48. Bxf5 {[%emt 0:00:57]} Qxh4+ {[%emt 0:00:12]} 49. Kg2 {[%emt 0:00:08]} Qh2+ {[%emt 0:00:13]} 50. Kf3 {[%emt 0:00:13]} Qh5+ {[%emt 0:00:11]} 51. Bg4 {[%emt 0:01:29]} Qxd5+ {[%emt 0:00:02]} 52. Ke3 {[%emt 0:01:13]} Qb3+ {[%emt 0:02:44]} 53. Kd4 {[%emt 0:00:38]} Qb4+ {[%emt 0:00:06]} 54. Ke3 {[%emt 0:00:28]} Qb3+ {[%emt 0:02:04]} 55. Kd4 {[%emt 0:00:30]} Qb4+ {[%emt 0:00:17]} 56. Ke3 {[%emt 0:00:03]} Re7+ {[%emt 0:01:47]} 57. Kf3 {[%emt 0:00:14]} Qb3+ {[%emt 0:00:06]} 58. Kg2 {[%emt 0:00:17]} Qc2+ {[%emt 0:00:09]} 59. Kg3 {[%emt 0:00:15]} Qd3+ {[%emt 0:00:13]} 60. Kh4 {[%emt 0:00:50]} Rh7+ {[%emt 0:00:46]} 61. Kg5 {[%emt 0:01:06]} Qd5+ {[%emt 0:00:41]} 62. Kf6 {[%emt 0:00:39]} Qf7+ {[%emt 0:01:13]} 63. Kg5 {[%emt 0:00:03]} Rg7+ {[%emt 0:00:27]} 64. Qxg7 {[%emt 0:01:04]} Qxg7+ {[%emt 0:00:01]} 65. Kh4 {[%emt 0:00:02]} Qe7+ {[%emt 0:00:34]} 66. Kh5 {[%emt 0:00:48]} Qf7+ {[%emt 0:00:15]} 67. Kh4 {[%emt 0:00:03]} Qxf4 {[%emt 0:00:13]} 68. Rxc8+ {[%emt 0:00:02]} Ke7 {[%emt 0:00:08]} 69. Kh3 {[%emt 0:01:24]} d5 {[%emt 0:00:13]} 70. Rc6 {[%emt 0:00:06]} Qf1+ {[%emt 0:00:13]} 71. Kg3 {[%emt 0:00:07]} Qxb5 {[%emt 0:00:08]} 72. Re6+ {[%emt 0:00:02]} Kf7 {[%emt 0:00:08]} 73. Rd6 {[%emt 0:00:11]} Qd3+ {[%emt 0:00:42]} 74. Kf4 {[%emt 0:00:13]} Qe4+ {[%emt 0:00:11]} 75. Kg5 {[%emt 0:00:02]} Qe5+ {[%emt 0:00:04]} 0-1

[Event "Baku Open 2024"]
[Site "Baku"]
[Date "2024.07.07"]
[Round "9.35"]
[White "Davudov, Tunar"]
[Black "Bharadia Yash"]
[Result "0-1"]
[ECO "E15"]
[WhiteElo "2249"]
[BlackElo "2100"]
[Annotator "TA"]
[PlyCount "128"]
[EventDate "2024.06.29"]
[EventType "swiss"]
[EventCountry "AZE"]
[SourceTitle "playchess.com"]
[Source "ChessBase"]
[SourceQuality "1"]
[TimeControl "5400+30"]

{[%evp 15,128,18,37,25,17,1,24,0,0,0,0,-1,0,0,26,0,0,-10,-10,-99,-100,-97,-66,-97,-85,-89,-97,-91,-87,-106,-105,-96,-100,-98,-99,-100,-58,-142,-115,-115,-117,-127,-65,-63,-67,-66,0,-79,-80,-87,-87,-104,-69,-76,-73,-70,-81,-126,-61,-59,-16,-33,-33,-36,-40,-33,-34,-35,-25,-58,-56,-53,0,0,0,0,0,-153,0,-47,-49,-307,-263,-373,-365,-384,-373,-390,-384,-457,-390,-455,-453,-456,-443,-755,-744,-988,-1063,-29974,-29977,-29977,-29978,-29979,-29980,-29980,-29981,-29982,-29983,-29983,-29984,-29984,-29985,-29985,-29986]} 1. d4 {[%emt 0:00:07]} Nf6 {[%emt 0:00:02]} 2. c4 {[%emt 0:00:16]} e6 {[%emt 0:00:02]} 3. Nf3 {[%emt 0:00:07]} b6 {[%emt 0:00:06]} 4. g3 {[%emt 0:00:16]} a5 {[%emt 0:00:55]} 5. Bg2 {[%emt 0:00:12]} Ba6 {[%emt 0:00:05]} 6. Qc2 {[%emt 0:01:21]} Bb4+ {[%emt 0:00:08]} 7. Bd2 {[%emt 0:01:14]} O-O {[%emt 0:00:27]} 8. O-O {[%emt 0:00:40]} d5 {[%emt 0:00:37]} 9. Bxb4 {[%emt 0:05:54]} axb4 {[%emt 0:02:43]} 10. Nbd2 {[%emt 0:00:58]} Nbd7 {[%emt 0:03:52]} 11. Ne5 {[%emt 0:11:29] White has an edge.} Nxe5 {[%emt 0:05:34]} 12. dxe5 {[%emt 0:00:22]} Ng4 {[%emt 0:00:20]} 13. cxd5 {[%emt 0:14:12]} exd5 {[%emt 0:00:18]} 14. Nf3 {[%emt 0:00:31]} Re8 {[%emt 0:01:12]} 15. Qf5 {[%emt 0:09:04]} Nh6 {[%emt 0:03:48]} 16. Qf4 {[%emt 0:51:47]} c5 {[%emt 0:04:29]} 17. Rfd1 {[%emt 0:00:00]} (17. Rfe1 $11) 17... Bxe2 $17 {[%emt 0:05:12]} 18. Rd2 {[%emt 0:00:00]} Bxf3 {[%emt 0:04:21]} 19. Bxf3 {[%emt 0:00:00]} g5 {[%emt 0:00:33]} 20. Qf6 {[%emt 0:00:00]} Qxf6 {[%emt 0:07:54]} 21. exf6 {[%emt 0:00:00]} Rad8 {[%emt 0:01:33]} 22. Bxd5 {[%emt 0:00:00]} Nf5 {[%emt 0:02:40]} 23. Kg2 {[%emt 0:00:00]} Nd4 {[%emt 0:03:42]} 24. Bc4 {[%emt 0:00:00]} Rd6 {[%emt 0:02:19]} 25. a3 {[%emt 0:00:00]} b5 {[%emt 0:13:15]} (25... Rxf6 $6 26. axb4 Kg7 27. bxc5 bxc5 28. Rb1 $11) 26. axb4 {[%emt 0:00:00]} (26. Bf1 $15) 26... bxc4 {[%emt 0:02:34]} 27. bxc5 {[%emt 0:00:00]} Rdd8 {[%emt 0:03:11]} (27... Rxf6 $6 28. Rxd4 Re2 29. Rf1 $11 (29. Rxc4 Rfxf2+ 30. Kh1 Rxh2+ 31. Kg1 Reg2+ 32. Kf1 Rxb2 $19)) 28. Ra4 {[%emt 0:00:00]} Ne6 {[%emt 0:05:14]} (28... Nc6 $1 $17 29. Rxd8 Rxd8 30. Rxc4 h5) 29. Rxd8 $15 {[%emt 0:00:00]} Rxd8 {[%emt 0:00:13]} 30. Rxc4 {[%emt 0:00:00][%mdl 4096] Endgame. KRN-KR} h6 {[%emt 0:02:56]} (30... h5 $15) 31. c6 {[%emt 0:00:00]} (31. b4 $11 {remains equal.}) 31... Kh7 $1 $17 {[%emt 0:02:46]} 32. b4 {[%emt 0:00:00]} Nc7 {[%emt 0:01:47]} 33. Re4 {[%emt 0:05:18]} Kg6 {[%emt 0:00:30]} 34. Re7 {[%emt 0:00:10]} Rc8 {[%emt 0:00:13]} (34... Kxf6 35. Rxc7 Rd4 36. b5 $18) 35. Rd7 {[%emt 0:00:44]} Kxf6 {[%emt 0:02:05]} 36. Rd6+ {[%emt 0:00:21] [#]} Kg7 {[%emt 0:00:54]} (36... Ke7 $1 $17 {[%cal Re7d6]} 37. Rd3 Ke6 38. Re3+ Kd6) 37. Rd7 $15 {[%emt 0:00:31]} Kg6 {[%emt 0:10:35]} 38. Kf3 {[%emt 0:00:58]} Kf6 {[%emt 0:02:26]} 39. Ke3 {[%emt 0:01:38]} Nb5 {[%emt 0:03:11][%cal Of6e6] Hoping for ...Ke6!} 40. Rd5 {[%emt 0:00:27]} Nc3 {[%emt 0:00:52]} 41. Rc5 {[%emt 0:01:28]} Na4 {[%emt 0:00:06]} 42. Rc2 {[%emt 0:00:35]} Ke5 {[%emt 0:00:10]} 43. b5 {[%emt 0:00:36]} Kd5 {[%emt 0:01:07]} ({Black should play} 43... Nb6 $15 44. Rc5+ Nd5+ 45. Kd3 Kd6) 44. c7 $11 {[%emt 0:01:14]} Nb6 {[%emt 0:01:10]} 45. Rc6 {[%emt 0:00:00]} Nd7 {[%emt 0:00:25]} 46. Kd2 $2 {[%emt 0:00:27] [#]} ({Better is} 46. Rc2 $11) 46... f6 $2 {[%emt 0:02:08]} ({Worse is} 46... Ne5 47. Rc3 Nd7 (47... Nc4+ $2 48. Rxc4 Kxc4 49. b6 $18) 48. h4 $11) (46... Nc5 $1 $17 {Threatens to win with ...Ne4+.} 47. Ke3 Ne6) 47. Kc2 {[%emt 0:00:31]} (47. g4 $11 {should be considered.}) 47... Ne5 $15 {[%emt 0:00:15]} 48. Rc3 {[%emt 0:00:28][%mdl 8192] This costs White the game.} ({Only move:} 48. Rxf6 $15 Rxc7+ 49. Kb3) 48... Nc4 $19 {[%emt 0:00:29]} 49. Kb3 {[%emt 0:00:09]} (49. Rd3+ {might work better.} Ke6 50. Rd8 Rxc7 51. Re8+ Kf7 52. Rb8) 49... Rxc7 {[%emt 0:00:26]} 50. Kb4 {[%emt 0:00:10]} Rc8 {[%emt 0:01:17]} 51. Rf3 {[%emt 0:00:43]} Ke6 {[%emt 0:00:25]} 52. Rc3 {[%emt 0:00:54]} Nd6 {[%emt 0:00:06] And now ...Rxc3 would win.} 53. Re3+ {[%emt 0:00:23]} Kd7 {[%emt 0:00:17]} 54. Rd3 {[%emt 0:00:44]} Rb8 {[%emt 0:01:16]} 55. Rd5 {[%emt 0:00:10]} (55. Ka4 $142) 55... Ke6 {[%emt 0:00:03]} 56. Rc5 {[%emt 0:00:12]} g4 {[%emt 0:00:35][%cal Ob8b5] ( -> ...Rxb5+!)} 57. Rh5 {[%emt 0:00:52] [#]} Rxb5+ $1 {[%emt 0:00:05][%mdl 512] Black mates.} 58. Rxb5 {[%emt 0:00:04]} Nxb5 {[%emt 0:00:03]} 59. Kxb5 {[%emt 0:00:05] K3P-K3P} Kd5 {[%emt 0:00:04]} 60. Kb6 {[%emt 0:00:05]} Ke4 {[%emt 0:00:10]} 61. Kc5 {[%emt 0:00:04]} Kf3 {[%emt 0:00:07]} 62. Kd5 {[%emt 0:00:03]} Kxf2 {[%emt 0:00:04]} 63. Ke4 {[%emt 0:00:08]} Kg2 {[%emt 0:00:03]} 64. Kf5 {[%emt 0:00:05]} h5 {[%emt 0:00:04] Weighted Error Value: White=0.47/Black=0.13 (very precise) .  Loses game:     	White=1     	---        Mistake:       	White=7     	Black=5      Inaccurate:     	White=5     	Black=5      OK:         	White=19    	Black=22     Best:        	White=3     	Black=7      Strong:       	---       	Black=1} 0-1

[Event "Baku Open 2024"]
[Site "Baku"]
[Date "2024.07.07"]
[Round "9.36"]
[White "Vrashank Chouhan"]
[Black "Fataliyeva, Ulviyya"]
[Result "1/2-1/2"]
[ECO "D32"]
[WhiteElo "2209"]
[BlackElo "2399"]
[Annotator "TA"]
[PlyCount "20"]
[EventDate "2024.06.29"]
[EventType "swiss"]
[EventCountry "AZE"]
[SourceTitle "playchess.com"]
[Source "ChessBase"]
[SourceQuality "1"]
[TimeControl "5400+30"]

{[%evp 15,20,14,15,27,25,15,26]} 1. Nf3 {[%emt 0:00:03]} d5 {[%emt 0:00:02]} 2. e3 {[%emt 0:00:07]} Nf6 {[%emt 0:00:04]} 3. c4 {[%emt 0:00:05]} e6 {[%emt 0:00:02]} 4. b3 {[%emt 0:00:08]} Be7 {[%emt 0:00:04]} 5. Bb2 {[%emt 0:00:04]} O-O {[%emt 0:00:10]} 6. Nc3 {[%emt 0:00:08]} c5 {[%emt 0:00:08][%cal Bc7c5,Bc5d4][%mdl 32]} 7. cxd5 {[%emt 0:00:06]} exd5 {[%emt 0:00:03]} 8. d4 {[%emt 0:00:09]} Nc6 {[%emt 0:02:56]} 9. Be2 {[%emt 0:00:47]} Ne4 {[%emt 0:01:00]} 10. O-O {[%emt 0:00:44]} cxd4 {[%emt 0:00:22] Not much happened in this game.   Weighted Error Value: White=0.06 (flawless) /Black=0.00 (flawless) .  Best:        	---       	Black=1} 1/2-1/2

[Event "Baku Open 2024"]
[Site "Baku"]
[Date "2024.07.07"]
[Round "9.37"]
[White "Kulnev, Aleksandr"]
[Black "Putrenko, Kirill"]
[Result "1/2-1/2"]
[ECO "E08"]
[WhiteElo "2127"]
[BlackElo "2349"]
[Annotator "TA"]
[PlyCount "80"]
[EventDate "2024.06.29"]
[EventType "swiss"]
[EventCountry "AZE"]
[SourceTitle "playchess.com"]
[Source "ChessBase"]
[SourceQuality "1"]
[TimeControl "5400+30"]

{[%evp 17,80,11,12,16,34,2,23,0,23,-15,0,2,57,45,52,44,33,45,39,35,35,23,42,41,24,46,53,34,42,45,49,48,47,29,63,62,54,0,0,0,0,0,25,19,60,53,55,61,99,104,118,114,137,118,166,0,56,0,137,146,146,159,160,161,128]} 1. d4 {[%emt 0:00:03]} Nf6 {[%emt 0:00:24]} 2. c4 {[%emt 0:00:12]} e6 {[%emt 0:00:07]} 3. Nf3 {[%emt 0:00:05]} d5 {[%emt 0:00:09]} 4. g3 {[%emt 0:00:05]} Bb4+ {[%emt 0:00:08]} 5. Bd2 {[%emt 0:00:05]} Be7 {[%emt 0:00:05]} 6. Bg2 {[%emt 0:00:06]} O-O {[%emt 0:00:09]} 7. O-O {[%emt 0:00:07]} c6 {[%emt 0:00:24]} 8. Qc2 {[%emt 0:00:07]} Nbd7 {[%emt 0:00:07]} 9. Bf4 {[%emt 0:00:23]} a5 {[%emt 0:00:13]} 10. Rd1 {[%emt 0:01:47]} h6 {[%emt 0:00:43]} 11. Nbd2 {[%emt 0:07:01]} Nh5 {[%emt 0:00:28]} 12. Be3 {[%emt 0:00:09] Weiß hat minimalen Vorteil.} Bd6 {[%emt 0:00:21]} 13. Nf1 {[%emt 0:00:49]} Qe7 {[%emt 0:05:24]} 14. Bc1 {[%emt 0:04:09]} b5 {[%emt 0:06:44]} (14... Nhf6 $11) 15. e4 $14 {[%emt 0:03:27]} dxe4 {[%emt 0:07:15]} 16. Qxe4 {[%emt 0:00:14]} bxc4 {[%emt 0:03:20]} 17. Ne5 {[%emt 0:08:41]} Nhf6 {[%emt 0:02:00][%cal Bh5f6,Bf6g4,Bg4e3][%mdl 32]} 18. Qxc6 {[%emt 0:05:31]} Ra6 {[%emt 0:02:21]} 19. Qb5 {[%emt 0:01:17]} Rb6 {[%emt 0:08:39]} 20. Qxa5 {[%emt 0:01:10]} ({Ein No Go ist} 20. Qxc4 Nxe5 21. dxe5 Bxe5 $11) 20... Bb4 $1 {[%emt 0:00:28]} 21. Qa4 {[%emt 0:11:17]} Nxe5 {[%emt 0:02:01]} 22. dxe5 {[%emt 0:00:07]} Ng4 {[%emt 0:00:28][%cal Ob4c5]} 23. Be3 {[%emt 0:04:55]} Bc5 {[%emt 0:07:35]} 24. Qxc4 {[%emt 0:13:34]} Nxe3 {[%emt 0:00:24]} 25. Nxe3 {[%emt 0:00:05] Qc3 ist eine echte Drohung.} Bxe3 {[%emt 0:04:56]} 26. fxe3 {[%emt 0:00:05]} Rxb2 {[%emt 0:00:39]} 27. Rab1 {[%emt 0:01:29]} (27. Qc3 $14 Rb8 28. Qd4) 27... Qa3 $11 {[%emt 0:01:54]} 28. Rxb2 {[%emt 0:00:20]} Qxb2 {[%emt 0:00:01]} 29. Rd4 {[%emt 0:06:06]} Qb1+ {[%emt 0:02:42]} 30. Bf1 {[%emt 0:01:18]} Bb7 {[%emt 0:06:22]} 31. Qb3 $1 {[%emt 0:03:47]} Qxb3 {[%emt 0:05:35]} 32. axb3 $14 {[%emt 0:00:06][%mdl 4096] Endspiel. KRB-KRB} Rc8 {[%emt 0:00:21]} 33. Rb4 {[%emt 0:09:25]} Rc7 {[%emt 0:04:32]} 34. Rc4 {[%emt 0:00:30]} Rd7 {[%emt 0:03:31] [#]} 35. Rd4 $1 {[%emt 0:00:57]} Rc7 {[%emt 0:00:15]} (35... Bc6 $16 {kämpft weiter.}) 36. Rc4 {[%emt 0:14:21]} (36. Rd8+ $18 Kh7 37. Bd3+ g6 38. b4) 36... Rd7 $1 {[%emt 0:00:11]} 37. Rd4 {[%emt 0:00:30]} (37. b4 $14) 37... Rc7 $1 $16 {[%emt 0:00:12]} 38. Rd8+ {[%emt 0:05:10] Weiß steht deutlich besser.} Kh7 {[%emt 0:28:22]} 39. Bd3+ g6 40. b4 {[%emt 0:01:00] Weiß steht aktiver.} Kg7 {[%emt 0:01:00] Gewichteter Fehlerwert: Weiß=0.13 (sehr präzise) /Schwarz=0.11 (sehr präzise) .  Fehler:       	Weiß=3     	Schwarz=2     Ungenau:       	Weiß=2     	Schwarz=3     OK:         	Weiß=11    	Schwarz=13    Bester:       	Weiß=3     	Schwarz=1     Stark:        	Weiß=2     	Schwarz=3} 1/2-1/2